[Event "*** Titled Tuesday Blitz"]
[Site "Chess.com"]
[Date "2020.02.04"]
[Round "1"]
[White "killer311"]
[Black "ilya261991"]
[Result "1-0"]
[WhiteElo "2262"]
[BlackElo "2562"]
[TimeControl "180+2"]
[EndTime "13:02:44 PST"]
[Termination "killer311 won by resignation"]

1. d4 {[%clk 0:02:57.8]} 1... Nf6 {[%clk 0:02:58.9]} 2. Nf3 {[%clk 0:02:58.6]}
2... e6 {[%clk 0:02:48.9]} 3. e3 {[%clk 0:02:56.8]} 3... d5 {[%clk 0:02:49.1]}
4. c4 {[%clk 0:02:50.6]} 4... c6 {[%clk 0:02:48.5]} 5. b3 {[%clk 0:02:48.9]}
5... Bd6 {[%clk 0:02:48.7]} 6. Bb2 {[%clk 0:02:48.4]} 6... O-O {[%clk
0:02:49.6]} 7. Nbd2 {[%clk 0:02:49.4]} 7... Nbd7 {[%clk 0:02:49.5]} 8. Bd3
{[%clk 0:02:50.2]} 8... Re8 {[%clk 0:02:49.5]} 9. Ne5 {[%clk 0:02:51.1]} 9...
Nf8 {[%clk 0:02:42]} 10. O-O {[%clk 0:02:50.9]} 10... Ng6 {[%clk 0:02:42.1]} 11.
f4 {[%clk 0:02:45]} 11... Nd7 {[%clk 0:02:41.2]} 12. Ndf3 {[%clk 0:02:43.6]}
12... Ndxe5 {[%clk 0:02:41.5]} 13. Nxe5 {[%clk 0:02:40]} 13... Nxe5 {[%clk
0:02:40.9]} 14. fxe5 {[%clk 0:02:36.7]} 14... Bf8 {[%clk 0:02:41.6]} 15. Bxh7+
{[%clk 0:02:27.1]} 15... Kxh7 {[%clk 0:02:35]} 16. Qh5+ {[%clk 0:02:27.8]} 16...
Kg8 {[%clk 0:02:36]} 17. Qxf7+ {[%clk 0:02:28.7]} 17... Kh7 {[%clk 0:02:37]} 18.
Rf3 {[%clk 0:02:18.5]} 1-0

[Event "*** Titled Tuesday Blitz"]
[Site "Chess.com"]
[Date "2020.02.04"]
[Round "1"]
[White "korbul"]
[Black "Irishchessman16"]
[Result "0-1"]
[WhiteElo "2573"]
[BlackElo "2258"]
[TimeControl "180+2"]
[EndTime "13:03:32 PST"]
[Termination "Irishchessman16 won by resignation"]

1. d4 {[%clk 0:03:01.9]} 1... Nf6 {[%clk 0:03:00]} 2. Nf3 {[%clk 0:03:02.4]}
2... e6 {[%clk 0:02:59.6]} 3. c4 {[%clk 0:03:03.4]} 3... b6 {[%clk 0:02:59.8]}
4. g3 {[%clk 0:03:03]} 4... Ba6 {[%clk 0:02:59.8]} 5. Nbd2 {[%clk 0:03:04.1]}
5... d5 {[%clk 0:02:56.5]} 6. cxd5 {[%clk 0:03:02.1]} 6... exd5 {[%clk 0:02:57]}
7. Bg2 {[%clk 0:03:03.4]} 7... Bd6 {[%clk 0:02:56.1]} 8. O-O {[%clk 0:03:04.3]}
8... O-O {[%clk 0:02:57]} 9. Ne5 {[%clk 0:03:01.4]} 9... Bb7 {[%clk 0:02:56.6]}
10. Ndf3 {[%clk 0:03:01.7]} 10... Ne4 {[%clk 0:02:55.9]} 11. Bf4 {[%clk
0:02:59.1]} 11... g5 {[%clk 0:02:52.5]} 12. Be3 {[%clk 0:02:59]} 12... f6 {[%clk
0:02:40.6]} 13. Nd3 {[%clk 0:02:59.1]} 13... c5 {[%clk 0:02:32.6]} 14. dxc5
{[%clk 0:02:59.1]} 14... bxc5 {[%clk 0:02:34.5]} 15. Nd2 {[%clk 0:02:59.7]}
15... Qe7 {[%clk 0:02:18.2]} 16. Nxe4 {[%clk 0:02:49]} 16... dxe4 {[%clk
0:02:18.1]} 17. Nxc5 {[%clk 0:02:46.2]} 17... Bxc5 {[%clk 0:02:14.6]} 18. Qb3+
{[%clk 0:02:47]} 18... Rf7 {[%clk 0:02:10.2]} 19. Bxc5 {[%clk 0:02:46.3]} 19...
Qxc5 {[%clk 0:02:09.3]} 20. Rac1 {[%clk 0:02:47.3]} 20... Qe7 {[%clk 0:02:04.9]}
21. Bh3 {[%clk 0:02:28]} 21... Kg7 {[%clk 0:01:53.9]} 22. Rc5 {[%clk 0:02:25.6]}
22... Qxc5 {[%clk 0:01:51.3]} 0-1

[Event "*** Titled Tuesday Blitz"]
[Site "Chess.com"]
[Date "2020.02.04"]
[Round "1"]
[White "tteshan"]
[Black "francyIM"]
[Result "0-1"]
[WhiteElo "2253"]
[BlackElo "2610"]
[TimeControl "180+2"]
[EndTime "13:03:35 PST"]
[Termination "francyIM won by resignation"]

1. e4 {[%clk 0:03:01.6]} 1... e5 {[%clk 0:03:00.2]} 2. Nf3 {[%clk 0:03:02.8]}
2... Nc6 {[%clk 0:02:58.7]} 3. d4 {[%clk 0:03:03.8]} 3... exd4 {[%clk
0:02:56.1]} 4. Nxd4 {[%clk 0:03:05.7]} 4... Nf6 {[%clk 0:02:55.4]} 5. Nxc6
{[%clk 0:03:03.1]} 5... bxc6 {[%clk 0:02:55.4]} 6. Bd3 {[%clk 0:03:04.4]} 6...
d5 {[%clk 0:02:55.2]} 7. Nd2 {[%clk 0:03:03.6]} 7... Bd6 {[%clk 0:02:54.9]} 8.
O-O {[%clk 0:02:59.5]} 8... O-O {[%clk 0:02:53.1]} 9. f3 {[%clk 0:02:56.5]} 9...
Re8 {[%clk 0:02:52.7]} 10. b3 {[%clk 0:02:56.4]} 10... Be5 {[%clk 0:02:26.5]}
11. Rb1 {[%clk 0:02:56.8]} 11... Qd6 {[%clk 0:02:24]} 12. g3 {[%clk 0:02:44.8]}
12... Bh3 {[%clk 0:02:23.9]} 13. f4 {[%clk 0:02:40.7]} 13... Bd4+ {[%clk
0:02:24.4]} 14. Kh1 {[%clk 0:02:39.6]} 14... dxe4 {[%clk 0:02:25.4]} 15. Bc4
{[%clk 0:02:29.5]} 15... Ng4 {[%clk 0:02:19.7]} 16. Qe2 {[%clk 0:02:23.7]} 16...
e3 {[%clk 0:02:09.7]} 17. Nf3 {[%clk 0:02:21.5]} 17... Nf2+ {[%clk 0:02:10.2]}
18. Rxf2 {[%clk 0:02:22.5]} 18... exf2 {[%clk 0:02:09.4]} 19. Qd1 {[%clk
0:02:12.8]} 19... Bg4 {[%clk 0:02:06.8]} 20. Be2 {[%clk 0:02:09.8]} 20... Bxf3+
{[%clk 0:02:07]} 21. Bxf3 {[%clk 0:02:11.7]} 21... Re1+ {[%clk 0:02:07.8]} 0-1

[Event "*** Titled Tuesday Blitz"]
[Site "Chess.com"]
[Date "2020.02.04"]
[Round "1"]
[White "comsac"]
[Black "kleinebeer98"]
[Result "0-1"]
[WhiteElo "2353"]
[BlackElo "2681"]
[TimeControl "180+2"]
[EndTime "13:04:06 PST"]
[Termination "kleinebeer98 won by resignation"]

1. e4 {[%clk 0:03:01.4]} 1... e5 {[%clk 0:03:00.1]} 2. Nf3 {[%clk 0:03:02.4]}
2... Nc6 {[%clk 0:03:00.7]} 3. Bc4 {[%clk 0:03:04]} 3... Nf6 {[%clk 0:03:01.6]}
4. d3 {[%clk 0:03:05.1]} 4... h6 {[%clk 0:03:01.2]} 5. c3 {[%clk 0:03:05.8]}
5... d6 {[%clk 0:03:01.9]} 6. Bb3 {[%clk 0:03:02.1]} 6... g5 {[%clk 0:02:59.3]}
7. Be3 {[%clk 0:02:53.5]} 7... g4 {[%clk 0:02:57.6]} 8. Ng1 {[%clk 0:02:54.5]}
8... h5 {[%clk 0:02:57.4]} 9. Nd2 {[%clk 0:02:54.1]} 9... d5 {[%clk 0:02:55.4]}
10. Bg5 {[%clk 0:02:50.1]} 10... Bh6 {[%clk 0:02:52.2]} 11. Bxf6 {[%clk
0:02:48.3]} 11... Qxf6 {[%clk 0:02:54.1]} 12. Bxd5 {[%clk 0:02:44.4]} 12... Ne7
{[%clk 0:02:45.7]} 13. Bb3 {[%clk 0:02:39]} 13... Ng6 {[%clk 0:02:38.6]} 14. g3
{[%clk 0:02:31.8]} 14... h4 {[%clk 0:02:31.4]} 15. Qe2 {[%clk 0:02:30]} 15... a5
{[%clk 0:02:24]} 16. O-O-O {[%clk 0:02:25.8]} 16... a4 {[%clk 0:02:24.7]} 17.
Bc2 {[%clk 0:02:27.4]} 17... a3 {[%clk 0:02:25.9]} 18. b3 {[%clk 0:02:27.9]}
18... Qc6 {[%clk 0:02:26.4]} 19. c4 {[%clk 0:02:19.2]} 19... Qc5 {[%clk
0:02:25.1]} 20. f4 {[%clk 0:02:02.7]} 20... Qd4 {[%clk 0:02:22.4]} 21. Rf1
{[%clk 0:01:56.7]} 21... exf4 {[%clk 0:02:20.5]} 22. gxf4 {[%clk 0:01:34.3]}
22... Nxf4 {[%clk 0:02:22.4]} 23. Qf2 {[%clk 0:01:29.9]} 23... Qa1+ {[%clk
0:02:20.6]} 24. Nb1 {[%clk 0:01:28.6]} 24... Nxd3+ {[%clk 0:02:21.7]} 0-1

[Event "*** Titled Tuesday Blitz"]
[Site "Chess.com"]
[Date "2020.02.04"]
[Round "1"]
[White "VladimirBelous"]
[Black "WeAintSurePal"]
[Result "1-0"]
[WhiteElo "2743"]
[BlackElo "2403"]
[TimeControl "180+2"]
[EndTime "13:04:14 PST"]
[Termination "VladimirBelous won by resignation"]

1. c4 {[%clk 0:03:01.9]} 1... e6 {[%clk 0:02:59.4]} 2. Nf3 {[%clk 0:03:02.7]}
2... Nf6 {[%clk 0:03:00.2]} 3. g3 {[%clk 0:03:04.6]} 3... d5 {[%clk 0:03:01.7]}
4. Bg2 {[%clk 0:03:06.3]} 4... dxc4 {[%clk 0:03:02.7]} 5. Qa4+ {[%clk
0:03:06.2]} 5... Bd7 {[%clk 0:02:58.1]} 6. Qxc4 {[%clk 0:03:07.4]} 6... Bc6
{[%clk 0:02:48.5]} 7. O-O {[%clk 0:03:06.7]} 7... Be7 {[%clk 0:02:49.3]} 8. Nc3
{[%clk 0:03:07.2]} 8... O-O {[%clk 0:02:50.6]} 9. e4 {[%clk 0:03:06.5]} 9... b5
{[%clk 0:02:18.4]} 10. Qe2 {[%clk 0:02:42.7]} 10... b4 {[%clk 0:02:16]} 11. e5
{[%clk 0:02:43.1]} 11... Nfd7 {[%clk 0:02:13.4]} 12. Ne4 {[%clk 0:02:40]} 12...
Nc5 {[%clk 0:02:06.9]} 13. Nxc5 {[%clk 0:02:40]} 13... Bxc5 {[%clk 0:02:08.8]}
14. d4 {[%clk 0:02:41.6]} 14... Be7 {[%clk 0:02:08.9]} 15. Be3 {[%clk
0:02:36.5]} 15... Bd5 {[%clk 0:02:09.6]} 16. Rfc1 {[%clk 0:02:38.1]} 16... Nd7
{[%clk 0:02:08.9]} 17. Nd2 {[%clk 0:02:36.2]} 17... Nb6 {[%clk 0:02:07.2]} 18.
Ne4 {[%clk 0:02:29.6]} 18... Qc8 {[%clk 0:02:03.4]} 19. Qg4 {[%clk 0:02:27.2]}
19... Nd7 {[%clk 0:01:43.7]} 20. Bh6 {[%clk 0:02:16.6]} 20... g6 {[%clk
0:01:36.2]} 21. Bxf8 {[%clk 0:02:16.7]} 21... Bxf8 {[%clk 0:01:38.1]} 22. Nd6
{[%clk 0:02:01.8]} 22... Bxd6 {[%clk 0:01:34.1]} 23. Bxd5 {[%clk 0:02:02.1]}
23... c6 {[%clk 0:01:35.2]} 1-0

[Event "*** Titled Tuesday Blitz"]
[Site "Chess.com"]
[Date "2020.02.04"]
[Round "1"]
[White "Jahonas"]
[Black "MikaelyanArman"]
[Result "0-1"]
[WhiteElo "2398"]
[BlackElo "2744"]
[TimeControl "180+2"]
[EndTime "13:04:21 PST"]
[Termination "MikaelyanArman won by resignation"]

1. d4 {[%clk 0:02:56.5]} 1... Nf6 {[%clk 0:03:00.6]} 2. c4 {[%clk 0:02:53.7]}
2... g6 {[%clk 0:03:01.8]} 3. Nf3 {[%clk 0:02:48.5]} 3... Bg7 {[%clk 0:03:02.9]}
4. g3 {[%clk 0:02:48.6]} 4... O-O {[%clk 0:03:03.6]} 5. Bg2 {[%clk 0:02:49.9]}
5... c5 {[%clk 0:03:03]} 6. O-O {[%clk 0:02:50.5]} 6... cxd4 {[%clk 0:03:04]} 7.
Nxd4 {[%clk 0:02:52.4]} 7... Nc6 {[%clk 0:03:05.3]} 8. Nxc6 {[%clk 0:02:52.7]}
8... dxc6 {[%clk 0:03:03.6]} 9. Nc3 {[%clk 0:02:53.2]} 9... Qxd1 {[%clk
0:02:56.1]} 10. Rxd1 {[%clk 0:02:49.6]} 10... Be6 {[%clk 0:02:58]} 11. b3 {[%clk
0:02:44.2]} 11... Nd7 {[%clk 0:02:29.2]} 12. Bb2 {[%clk 0:02:41.2]} 12... Rfd8
{[%clk 0:02:25.6]} 13. Rd2 {[%clk 0:02:16]} 13... Kf8 {[%clk 0:02:17.3]} 14.
Rad1 {[%clk 0:02:15.6]} 14... Ke8 {[%clk 0:02:18.1]} 15. h3 {[%clk 0:02:08.2]}
15... Nc5 {[%clk 0:02:17.1]} 16. Rxd8+ {[%clk 0:02:06.1]} 16... Rxd8 {[%clk
0:02:19]} 17. Rxd8+ {[%clk 0:02:06.4]} 17... Kxd8 {[%clk 0:02:20.9]} 18. Ba3
{[%clk 0:02:04.4]} 18... Nxb3 {[%clk 0:02:15.8]} 19. Nd5 {[%clk 0:01:52.4]}
19... Nd4 {[%clk 0:01:55.4]} 20. Bxe7+ {[%clk 0:01:46.6]} 20... Kd7 {[%clk
0:01:56.6]} 21. Bf6 {[%clk 0:01:46.3]} 21... Bxf6 {[%clk 0:01:57.6]} 22. Nxf6+
{[%clk 0:01:46.3]} 22... Ke7 {[%clk 0:01:59.2]} 23. Nxh7 {[%clk 0:01:42.4]}
23... Nxe2+ {[%clk 0:02:00.1]} 24. Kh2 {[%clk 0:01:35.9]} 24... Bxc4 {[%clk
0:01:59.4]} 0-1

[Event "*** Titled Tuesday Blitz"]
[Site "Chess.com"]
[Date "2020.02.04"]
[Round "1"]
[White "x-3738459472"]
[Black "Saitama_Hero"]
[Result "1-0"]
[WhiteElo "2614"]
[BlackElo "2268"]
[TimeControl "180+2"]
[EndTime "13:04:21 PST"]
[Termination "x-3738459472 won by resignation"]

1. d4 {[%clk 0:02:59.1]} 1... Nf6 {[%clk 0:02:58.6]} 2. Bf4 {[%clk 0:02:59.4]}
2... c5 {[%clk 0:02:54.2]} 3. e3 {[%clk 0:02:59.1]} 3... cxd4 {[%clk 0:02:52.8]}
4. exd4 {[%clk 0:03:00]} 4... g6 {[%clk 0:02:53.2]} 5. Nc3 {[%clk 0:02:58.8]}
5... Bg7 {[%clk 0:02:55.1]} 6. Qd2 {[%clk 0:02:59.6]} 6... O-O {[%clk
0:02:54.6]} 7. Bh6 {[%clk 0:03:00.7]} 7... Bxh6 {[%clk 0:02:53.4]} 8. Qxh6
{[%clk 0:03:02.6]} 8... Qb6 {[%clk 0:02:54]} 9. O-O-O {[%clk 0:03:03]} 9... Nc6
{[%clk 0:02:46.6]} 10. Nf3 {[%clk 0:03:03.6]} 10... d5 {[%clk 0:02:05.3]} 11.
Ng5 {[%clk 0:03:03.1]} 11... e6 {[%clk 0:02:06.8]} 12. h4 {[%clk 0:03:02.6]}
12... Nxd4 {[%clk 0:02:05.5]} 13. Bd3 {[%clk 0:02:58.4]} 13... Qd6 {[%clk
0:01:12.9]} 14. g3 {[%clk 0:02:53.8]} 14... Rd8 {[%clk 0:01:09.9]} 15. Bxg6
{[%clk 0:02:53.3]} 15... fxg6 {[%clk 0:01:04.9]} 16. Rxd4 {[%clk 0:02:53]} 16...
Qe7 {[%clk 0:01:01.9]} 17. Rf4 {[%clk 0:02:51.7]} 17... Qg7 {[%clk 0:01:00.6]}
18. Qxg7+ {[%clk 0:02:48.8]} 18... Kxg7 {[%clk 0:01:02.5]} 19. Re1 {[%clk
0:02:49.7]} 19... Re8 {[%clk 0:01:02.6]} 20. Rxf6 {[%clk 0:02:42.7]} 20... Kxf6
{[%clk 0:01:02.3]} 21. Nxd5+ {[%clk 0:02:44]} 21... Kg7 {[%clk 0:01:02.9]} 22.
Nc7 {[%clk 0:02:45.1]} 22... Re7 {[%clk 0:00:59.3]} 23. Nxa8 {[%clk 0:02:44.8]}
23... b6 {[%clk 0:00:57.2]} 24. f4 {[%clk 0:02:43.9]} 24... Bb7 {[%clk
0:00:56.3]} 25. Nxb6 {[%clk 0:02:43.9]} 25... axb6 {[%clk 0:00:58.2]} 26. Rxe6
{[%clk 0:02:44.9]} 1-0

[Event "*** Titled Tuesday Blitz"]
[Site "Chess.com"]
[Date "2020.02.04"]
[Round "1"]
[White "chessasuke"]
[Black "dawtonlms"]
[Result "1-0"]
[WhiteElo "2671"]
[BlackElo "2338"]
[TimeControl "180+2"]
[EndTime "13:04:23 PST"]
[Termination "chessasuke won by resignation"]

1. e4 {[%clk 0:03:01.9]} 1... e6 {[%clk 0:02:51.1]} 2. d4 {[%clk 0:03:01.2]}
2... d5 {[%clk 0:02:52.1]} 3. Nc3 {[%clk 0:02:59.9]} 3... Nf6 {[%clk 0:02:51.7]}
4. e5 {[%clk 0:02:46.7]} 4... Nfd7 {[%clk 0:02:51.7]} 5. f4 {[%clk 0:02:48.6]}
5... c5 {[%clk 0:02:52.4]} 6. Nf3 {[%clk 0:02:45.2]} 6... Nc6 {[%clk 0:02:53.4]}
7. Be3 {[%clk 0:02:44.5]} 7... Be7 {[%clk 0:02:47.9]} 8. Qd2 {[%clk 0:02:40.6]}
8... O-O {[%clk 0:02:43.6]} 9. O-O-O {[%clk 0:02:39.1]} 9... c4 {[%clk
0:02:44.4]} 10. f5 {[%clk 0:02:34.7]} 10... b5 {[%clk 0:02:44.2]} 11. f6 {[%clk
0:02:35.2]} 11... gxf6 {[%clk 0:02:41.1]} 12. Bh6 {[%clk 0:02:36.3]} 12... Re8
{[%clk 0:02:31.5]} 13. Qf4 {[%clk 0:02:37.2]} 13... Bf8 {[%clk 0:02:20.5]} 14.
Bxf8 {[%clk 0:02:35.5]} 14... Rxf8 {[%clk 0:02:16.1]} 15. Nxb5 {[%clk
0:02:29.2]} 15... fxe5 {[%clk 0:02:05.9]} 16. Nxe5 {[%clk 0:02:12.4]} 16...
Ndxe5 {[%clk 0:01:57.2]} 17. dxe5 {[%clk 0:02:12.4]} 17... Qb6 {[%clk
0:01:54.6]} 18. Nd4 {[%clk 0:02:06.2]} 18... Rb8 {[%clk 0:01:39]} 19. Qg5+
{[%clk 0:02:06.2]} 19... Kh8 {[%clk 0:01:39.1]} 20. Qf6+ {[%clk 0:02:07.5]}
20... Kg8 {[%clk 0:01:40.3]} 21. Nxc6 {[%clk 0:02:08.7]} 21... Qxc6 {[%clk
0:01:24.2]} 22. Rd4 {[%clk 0:02:08.2]} 1-0

[Event "*** Titled Tuesday Blitz"]
[Site "Chess.com"]
[Date "2020.02.04"]
[Round "1"]
[White "Sven_Tica"]
[Black "HanSchut"]
[Result "1-0"]
[WhiteElo "2646"]
[BlackElo "2323"]
[TimeControl "180+2"]
[EndTime "13:04:39 PST"]
[Termination "Sven_Tica won by resignation"]

1. d4 {[%clk 0:03:01.9]} 1... Nf6 {[%clk 0:03:00.2]} 2. c4 {[%clk 0:03:03.2]}
2... g6 {[%clk 0:03:01.1]} 3. Nc3 {[%clk 0:03:04.3]} 3... d5 {[%clk 0:03:02.6]}
4. Bf4 {[%clk 0:03:05.6]} 4... Bg7 {[%clk 0:03:03.1]} 5. e3 {[%clk 0:03:07.3]}
5... c5 {[%clk 0:03:02.5]} 6. dxc5 {[%clk 0:03:09.2]} 6... Qa5 {[%clk
0:03:02.8]} 7. Rc1 {[%clk 0:03:10.5]} 7... dxc4 {[%clk 0:03:00.1]} 8. Bxc4
{[%clk 0:03:11.4]} 8... O-O {[%clk 0:03:00.7]} 9. Ne2 {[%clk 0:03:12.8]} 9...
Qxc5 {[%clk 0:03:01]} 10. Qb3 {[%clk 0:03:14.3]} 10... Qa5 {[%clk 0:02:38.9]}
11. O-O {[%clk 0:03:11.2]} 11... Nc6 {[%clk 0:02:40.1]} 12. Rfd1 {[%clk
0:02:58.5]} 12... Qb4 {[%clk 0:02:34.9]} 13. Nb5 {[%clk 0:02:48.9]} 13... Qxb3
{[%clk 0:02:27.3]} 14. Bxb3 {[%clk 0:02:49.4]} 14... e5 {[%clk 0:02:17.6]} 15.
Bg5 {[%clk 0:02:48.8]} 15... h6 {[%clk 0:02:16.8]} 16. Bxf6 {[%clk 0:02:42.9]}
16... Bxf6 {[%clk 0:02:17.7]} 17. Nd6 {[%clk 0:02:43.7]} 17... Na5 {[%clk
0:01:52.6]} 18. Bxf7+ {[%clk 0:02:16.6]} 18... Rxf7 {[%clk 0:01:47.2]} 19. Nxc8
{[%clk 0:02:14.5]} 19... Kg7 {[%clk 0:01:24.8]} 20. Nd6 {[%clk 0:02:12.6]} 20...
Re7 {[%clk 0:01:23.5]} 21. Nc3 {[%clk 0:02:13.2]} 21... Rd8 {[%clk 0:01:14.3]}
22. Nce4 {[%clk 0:02:14.4]} 22... Red7 {[%clk 0:01:06.6]} 23. Ne8+ {[%clk
0:02:07.2]} 1-0

[Event "*** Titled Tuesday Blitz"]
[Site "Chess.com"]
[Date "2020.02.04"]
[Round "1"]
[White "bait_or_mate"]
[Black "FredddieCroderg"]
[Result "1-0"]
[WhiteElo "2545"]
[BlackElo "2106"]
[TimeControl "180+2"]
[EndTime "13:04:41 PST"]
[Termination "bait_or_mate won by checkmate"]

1. d4 {[%clk 0:02:58]} 1... Nf6 {[%clk 0:03:00.4]} 2. c4 {[%clk 0:02:59.2]} 2...
e6 {[%clk 0:03:01.8]} 3. Nf3 {[%clk 0:03:00.2]} 3... b6 {[%clk 0:03:00.9]} 4. g3
{[%clk 0:03:00.3]} 4... Bb7 {[%clk 0:03:01.3]} 5. Bg2 {[%clk 0:03:01.9]} 5...
Be7 {[%clk 0:03:02.7]} 6. O-O {[%clk 0:03:03.4]} 6... O-O {[%clk 0:03:04.2]} 7.
Re1 {[%clk 0:03:03.2]} 7... Bb4 {[%clk 0:03:04.2]} 8. Bd2 {[%clk 0:02:57.6]}
8... a5 {[%clk 0:03:03.2]} 9. a3 {[%clk 0:02:49.9]} 9... Bxd2 {[%clk 0:03:02.3]}
10. Nbxd2 {[%clk 0:02:51.8]} 10... c5 {[%clk 0:02:56.4]} 11. dxc5 {[%clk
0:02:42]} 11... bxc5 {[%clk 0:02:58.3]} 12. e4 {[%clk 0:02:40.3]} 12... d6
{[%clk 0:02:54.3]} 13. Qe2 {[%clk 0:02:33.9]} 13... e5 {[%clk 0:02:55.3]} 14.
Nh4 {[%clk 0:02:25]} 14... Nc6 {[%clk 0:02:54.4]} 15. Ndf3 {[%clk 0:02:19.7]}
15... g6 {[%clk 0:02:53.4]} 16. Rad1 {[%clk 0:02:17.4]} 16... Kg7 {[%clk
0:02:49.2]} 17. Qe3 {[%clk 0:02:16.1]} 17... h6 {[%clk 0:02:40.5]} 18. Rd2
{[%clk 0:02:03.2]} 18... Qe7 {[%clk 0:02:39.4]} 19. h3 {[%clk 0:01:59.2]} 19...
Rfd8 {[%clk 0:02:39.3]} 20. Kh2 {[%clk 0:01:58]} 20... a4 {[%clk 0:02:35.3]} 21.
Red1 {[%clk 0:01:55.3]} 21... Ba6 {[%clk 0:02:30.8]} 22. Rc1 {[%clk 0:01:55.3]}
22... Rab8 {[%clk 0:02:29.4]} 23. Bf1 {[%clk 0:01:53]} 23... Nd7 {[%clk
0:02:26.9]} 24. Nf5+ {[%clk 0:01:41.8]} 24... gxf5 {[%clk 0:02:22.6]} 25. Nh4
{[%clk 0:01:43.7]} 25... Nd4 {[%clk 0:02:09.8]} 26. Rxd4 {[%clk 0:01:41.3]}
26... cxd4 {[%clk 0:02:11.7]} 27. Nxf5+ {[%clk 0:01:42]} 27... Kf8 {[%clk
0:01:59.4]} 28. Qxh6+ {[%clk 0:01:42.8]} 28... Ke8 {[%clk 0:02:00.5]} 29. Ng7+
{[%clk 0:01:41.7]} 29... Kf8 {[%clk 0:02:00.1]} 30. Ne6+ {[%clk 0:01:43.6]}
30... Ke8 {[%clk 0:02:01]} 31. Nc7# {[%clk 0:01:44.9]} 1-0

[Event "*** Titled Tuesday Blitz"]
[Site "Chess.com"]
[Date "2020.02.04"]
[Round "1"]
[White "AndrewDGreen"]
[Black "olksuna"]
[Result "0-1"]
[WhiteElo "2207"]
[BlackElo "2577"]
[TimeControl "180+2"]
[EndTime "13:04:46 PST"]
[Termination "olksuna won by resignation"]

1. d4 {[%clk 0:03:01.5]} 1... Nf6 {[%clk 0:03:00]} 2. Nf3 {[%clk 0:03:02.1]}
2... d5 {[%clk 0:02:59.9]} 3. Bf4 {[%clk 0:03:02.4]} 3... e6 {[%clk 0:02:59.6]}
4. e3 {[%clk 0:03:03.3]} 4... c5 {[%clk 0:03:00.7]} 5. c3 {[%clk 0:03:04.1]}
5... Nc6 {[%clk 0:03:02]} 6. Nbd2 {[%clk 0:03:05.1]} 6... Nh5 {[%clk 0:03:02.8]}
7. Bg5 {[%clk 0:03:05.3]} 7... f6 {[%clk 0:03:03.9]} 8. Bh4 {[%clk 0:03:04.5]}
8... g6 {[%clk 0:03:05.4]} 9. h3 {[%clk 0:02:57.6]} 9... Be7 {[%clk 0:03:00.3]}
10. Bb5 {[%clk 0:02:53.8]} 10... O-O {[%clk 0:02:56.4]} 11. g4 {[%clk 0:02:44]}
11... Ng7 {[%clk 0:02:56.6]} 12. Qe2 {[%clk 0:02:32.2]} 12... Bd7 {[%clk
0:02:54]} 13. Bg3 {[%clk 0:02:21.9]} 13... a6 {[%clk 0:02:51.6]} 14. Ba4 {[%clk
0:02:17.2]} 14... Nxd4 {[%clk 0:02:48.8]} 15. exd4 {[%clk 0:02:06.8]} 15... Bxa4
{[%clk 0:02:49.3]} 16. g5 {[%clk 0:01:58.1]} 16... fxg5 {[%clk 0:02:44]} 17. Be5
{[%clk 0:01:56.6]} 17... Bb5 {[%clk 0:02:37.4]} 18. c4 {[%clk 0:01:50.1]} 18...
dxc4 {[%clk 0:02:34.2]} 19. Bxg7 {[%clk 0:01:47.2]} 19... Kxg7 {[%clk
0:02:35.3]} 20. Qe5+ {[%clk 0:01:24.8]} 20... Bf6 {[%clk 0:02:25.1]} 21. Qxc5
{[%clk 0:01:25.7]} 21... Rc8 {[%clk 0:02:23.4]} 22. Qb4 {[%clk 0:01:19.6]} 22...
Bxd4 {[%clk 0:02:17.5]} 23. Nxd4 {[%clk 0:01:17.6]} 23... Qxd4 {[%clk
0:02:17.3]} 24. O-O {[%clk 0:01:18.5]} 24... g4 {[%clk 0:02:08.1]} 25. Rfe1
{[%clk 0:01:14.6]} 25... Qxf2+ {[%clk 0:02:02.2]} 0-1

[Event "*** Titled Tuesday Blitz"]
[Site "Chess.com"]
[Date "2020.02.04"]
[Round "1"]
[White "PNEPaul"]
[Black "evgenyermolaev"]
[Result "0-1"]
[WhiteElo "1801"]
[BlackElo "2517"]
[TimeControl "180+2"]
[EndTime "13:05:02 PST"]
[Termination "evgenyermolaev won by resignation"]

1. e4 {[%clk 0:03:00.6]} 1... c5 {[%clk 0:02:59.7]} 2. Nf3 {[%clk 0:03:00.8]}
2... d6 {[%clk 0:03:00]} 3. d4 {[%clk 0:03:01.7]} 3... cxd4 {[%clk 0:03:01.9]}
4. c3 {[%clk 0:03:02.7]} 4... d3 {[%clk 0:03:01.4]} 5. Bxd3 {[%clk 0:03:02.4]}
5... g6 {[%clk 0:03:01.2]} 6. Bf4 {[%clk 0:03:00.9]} 6... Bg7 {[%clk 0:03:02.3]}
7. Qe2 {[%clk 0:03:01.9]} 7... Nf6 {[%clk 0:03:03.4]} 8. Na3 {[%clk 0:02:59.5]}
8... O-O {[%clk 0:03:02.7]} 9. Rd1 {[%clk 0:02:58]} 9... Nc6 {[%clk 0:02:48.2]}
10. Bb1 {[%clk 0:02:58.2]} 10... Nd7 {[%clk 0:02:38.4]} 11. h4 {[%clk
0:02:53.2]} 11... Nde5 {[%clk 0:02:36.8]} 12. h5 {[%clk 0:02:48.1]} 12... Bg4
{[%clk 0:02:35.9]} 13. Qe3 {[%clk 0:02:27.3]} 13... Qb6 {[%clk 0:02:26.3]} 14.
Qxb6 {[%clk 0:02:24.1]} 14... axb6 {[%clk 0:02:19.8]} 15. Bxe5 {[%clk
0:02:21.7]} 15... Nxe5 {[%clk 0:02:16.4]} 16. Nxe5 {[%clk 0:02:14.5]} 16... Bxd1
{[%clk 0:02:14.7]} 17. Nd7 {[%clk 0:02:06.3]} 17... Rfd8 {[%clk 0:02:12.5]} 18.
Nxb6 {[%clk 0:02:06.7]} 18... Ra6 {[%clk 0:02:08.5]} 19. Kxd1 {[%clk 0:01:59.7]}
19... Rxb6 {[%clk 0:02:08.4]} 20. Nc4 {[%clk 0:01:57.9]} 20... Rb5 {[%clk
0:02:03]} 21. hxg6 {[%clk 0:01:57.3]} 21... hxg6 {[%clk 0:02:02.5]} 22. Kc2
{[%clk 0:01:57.8]} 22... d5 {[%clk 0:01:54.6]} 23. exd5 {[%clk 0:01:57.1]} 23...
Rbxd5 {[%clk 0:01:56.5]} 24. Re1 {[%clk 0:01:48.1]} 24... b5 {[%clk 0:01:51.9]}
25. Nb6 {[%clk 0:01:44.2]} 25... Rd2+ {[%clk 0:01:51.9]} 26. Kb3 {[%clk
0:01:44.8]} 26... Rxf2 {[%clk 0:01:48.2]} 27. Rxe7 {[%clk 0:01:44.2]} 27... Rdd2
{[%clk 0:01:48.7]} 28. Be4 {[%clk 0:01:36.5]} 28... Rxb2+ {[%clk 0:01:48]} 29.
Ka3 {[%clk 0:01:36.8]} 29... Rxa2+ {[%clk 0:01:40.1]} 30. Kb4 {[%clk 0:01:37.5]}
30... Bf8 {[%clk 0:01:40.9]} 0-1